[Event "10th Cesme Open-A 2024"]
[Site "Cesme"]
[Date "2024.06.23"]
[Round "1"]
[White "Kilic, Eray"]
[Black "Kavri, Yusuf Eren"]
[Result "0-1"]
[ECO "B54"]
[WhiteElo "2443"]
[BlackElo "2059"]
[Annotator "TA"]
[PlyCount "104"]
[EventDate "2024.06.23"]
[EventType "swiss"]
[EventCountry "TUR"]
[SourceTitle "playchess.com"]
[Source "ChessBase"]
[SourceQuality "1"]
[TimeControl "5400+30"]

{[%evp 12,104,11,25,27,7,26,0,0,0,0,0,0,0,0,0,0,0,0,11,6,24,31,0,0,-13,-15,-368,-383,-476,-460,-798,-809,-1490,-1426,-1896,-1905,-2028,-2042,-29992,-29993,-29993,-5332,-1703,-712,-665,-401,-416,-424,-408,-425,-487,-445,-480,-465,-427,-424,-460,-441,-507,-489,-516,-519,-519,-505,-537,-543,-542,-529,-555,-549,-566,-566,-562,-533,-583,-541,-576,-563,-551,-558,-624,-616,-639,-633,-613,-560,-2436,-29974,-29974,-29975,-29974,-29975,-29969,-29971]} 1. e4 {[%emt 0:01:00]} c5 {[%emt 0:01:00]} 2. Nf3 {[%emt 0:00:30]} d6 {[%emt 0:00:00]} 3. Nc3 {[%emt 0:00:30]} Nc6 {[%emt 0:02:00]} 4. Bb5 {[%emt 0:00:00]} Bd7 {[%emt 0:01:30]} 5. Bxc6 {[%emt 0:00:00]} Bxc6 {[%emt 0:00:30]} 6. d4 {[%emt 0:00:30]} cxd4 {[%emt 0:01:30]} 7. Nxd4 {[%emt 0:00:30]} Nf6 {[%emt 0:03:30]} 8. Qe2 {[%emt 0:00:00]} e6 {[%emt 0:05:30]} 9. Bg5 {[%emt 0:11:00]} Be7 $1 {[%emt 0:12:30] The position is equal.} 10. f4 {[%emt 0:03:30]} h6 {[%emt 0:05:30]} 11. Bxf6 {[%emt 0:00:00]} Bxf6 {[%emt 0:00:30]} 12. O-O-O {[%emt 0:00:00] Black must now prevent e5.} Qa5 {[%emt 0:02:30]} 13. Nb3 {[%emt 0:09:30][%csl LRa5,LRd6]} Qb4 {[%emt 0:12:30]} 14. a3 {[%emt 0:00:30]} Qb6 {[%emt 0:00:30]} 15. Nd5 {[%emt 0:01:30]} exd5 {[%emt 0:11:30]} 16. exd5+ {[%emt 0:01:30]} Kd7 $1 {[%emt 0:00:30]} 17. dxc6+ {[%emt 0:01:30]} bxc6 {[%emt 0:00:00]} 18. Qd3 {[%emt 0:00:30]} d5 {[%emt 0:01:00]} 19. c4 $2 {[%emt 0:02:30][%mdl 8192] This costs White the game.} (19. g4 $11 {and White is okay.}) 19... Rab8 $19 {[%emt 0:02:30] Active counter play!} 20. Kc2 {[%emt 0:11:30]} Rhe8 {[%emt 0:05:30] Repels Rhe1} 21. cxd5 {[%emt 0:12:30] [#]} (21. Rde1 $142 Qf2+ 22. Kd1 Qxb2 (22... Qxf4 23. cxd5 Qg4+ 24. Kc1 $19) (22... Qxg2 $2 23. Nc5+ Kd6 24. b4 $19) 23. Nc1) 21... c5 $1 {[%emt 0:01:30][%cal Oc5c4] ...c4! is the strong threat.} 22. Rb1 {[%emt 0:11:30] [#]} c4 $1 {[%emt 0:06:30][%mdl 512]} 23. Qh3+ {[%emt 0:00:30]} (23. Qf5+ Kd8) 23... Kd8 {[%emt 0:03:30]} 24. Nd2 {[%emt 0:00:00]} Qd4 {[%emt 0:00:30][%cal Oe8e2]} 25. b3 {[%emt 0:00:00]} Re2 {[%emt 0:00:30][%csl Ge2][%cal Rd4d2] White is weak on the dark squares} (25... Qxf4 $2 26. bxc4 Rxb1 27. Rxb1 $19) 26. Rhd1 {[%emt 0:00:30]} c3 {[%emt 0:00:30]} (26... Rb5 $142 27. Qf3 cxb3+ 28. Rxb3 Rc5+ (28... Rxd5 $2 {perishes.} 29. Qxe2 Qc5+ 30. Qc4 $18) 29. Qc3 Rxc3+ 30. Kb2 Rxd2+ 31. Rxd2 Qxd2+ 32. Kb1 Rxb3#) 27. Qd3 {[%emt 0:00:30]} Qxd3+ {[%emt 0:00:30]} (27... Qf2 $142 28. b4 cxd2 (28... Rxd2+ $2 29. Rxd2 cxd2 30. Rd1 $19)) 28. Kxd3 {[%emt 0:00:30]} Rxd2+ {[%emt 0:00:30]} 29. Rxd2 {[%emt 0:00:30]} cxd2 {[%emt 0:00:30]} 30. Kxd2 {[%emt 0:00:30][%mdl 4096] Endgame. KRB-KR} Rb5 {[%emt 0:00:00]} 31. g3 {[%emt 0:00:00]} Rxd5+ {[%emt 0:00:00]} 32. Ke3 {[%emt 0:00:00]} Rc5 {[%emt 0:00:00]} 33. a4 {[%emt 0:00:00]} a5 {[%emt 0:01:00]} 34. b4 {[%emt 0:00:00]} Rc3+ {[%emt 0:00:30]} 35. Kf2 {[%emt 0:00:00]} Rc2+ {[%emt 0:00:30]} 36. Kg1 {[%emt 0:00:00]} axb4 {[%emt 0:00:30]} 37. Rxb4 {[%emt 0:00:00]} Kd7 {[%emt 0:00:30]} 38. a5 {[%emt 0:00:00]} Ra2 {[%emt 0:00:00] Against Ra4} 39. Rb5 {[%emt 0:00:30]} Bd8 {[%emt 0:01:00]} 40. Rd5+ {[%emt 0:00:30]} Ke7 {[%emt 0:00:30]} 41. Re5+ {[%emt 0:00:30]} Kf6 {[%emt 0:00:30]} 42. a6 {[%emt 0:00:30]} Rxa6 {[%emt 0:00:30]} 43. Kg2 {[%emt 0:00:00]} Ra5 {[%emt 0:00:30]} 44. Re8 {[%emt 0:00:00]} Rd5 {[%emt 0:00:00]} 45. Kf3 {[%emt 0:00:30]} g6 {[%emt 0:00:00]} 46. Rg8 {[%emt 0:00:00]} h5 {[%emt 0:01:30]} 47. Ke4 {[%emt 0:00:00]} Rd1 {[%emt 0:00:00]} 48. h3 {[%emt 0:00:30]} Bb6 {[%emt 0:01:00] ( -> ...Rd8)} 49. g4 {[%emt 0:00:00]} Rd8 {[%emt 0:00:00]} 50. g5+ {[%emt 0:00:00] Black mates.} Ke6 {[%emt 0:00:00]} 51. Rg7 {[%emt 0:00:30]} Bd4 {[%emt 0:00:30]} 52. Rh7 {[%emt 0:00:30]} Rh8 {[%emt 0:00:30] Weighted Error Value: White=1.39/Black=0.41.  Loses game:     	White=1     	---        Mistake:       	White=1     	---        Inaccurate:     	White=2     	---        OK:         	White=11    	Black=17     Best:        	---       	Black=1      Strong:       	---       	Black=3} 0-1

[Event "10th Cesme Open-A 2024"]
[Site "Cesme"]
[Date "2024.06.23"]
[Round "1"]
[White "Ozsakallioglu, Okan"]
[Black "Zakirov, Musa"]
[Result "1-0"]
[ECO "B90"]
[WhiteElo "2402"]
[BlackElo "2112"]
[Annotator "RC"]
[PlyCount "37"]
[EventDate "2024.06.23"]
[EventType "swiss"]
[EventCountry "TUR"]
[SourceTitle "playchess.com"]
[Source "ChessBase"]
[SourceQuality "1"]
[TimeControl "5400+30"]

1. e4 {[%emt 0:01:00]} c5 {[%emt 0:01:00]} 2. Nf3 {[%emt 0:00:00]} d6 {[%emt 0:00:30]} 3. d4 {[%emt 0:00:00]} cxd4 {[%emt 0:00:30]} 4. Nxd4 {[%emt 0:00:30]} Nf6 {[%emt 0:00:30]} 5. Nc3 {[%emt 0:00:30]} a6 {[%emt 0:00:00]} 6. Be3 {[%emt 0:01:30]} e5 {[%emt 0:00:00]} 7. Nb3 {[%emt 0:00:30]} Be7 {[%emt 0:00:00]} 8. h3 {[%emt 0:00:30]} Be6 {[%emt 0:01:00]} 9. Qf3 {[%emt 0:03:30]} Nbd7 {[%emt 0:09:30]} 10. g4 {[%emt 0:03:30]} h6 {[%emt 0:00:00]} 11. O-O-O {[%emt 0:01:30]} b5 {[%emt 0:07:00]} 12. Nd5 {[%emt 0:06:30]} Bxd5 {[%emt 0:10:30]} 13. exd5 {[%emt 0:02:30]} Nb6 {[%emt 0:00:00]} 14. h4 {[%emt 0:10:30]} e4 {[%emt 0:14:00]} 15. Qg2 {[%emt 0:01:30]} Nfxd5 {[%emt 0:02:30]} 16. Bd2 {[%emt 0:08:30]} Bxh4 {[%emt 0:08:30]} 17. Qxe4+ {[%emt 0:15:30]} Qe7 {[%emt 0:00:30]} 18. Bg2 {[%emt 0:04:30]} O-O-O {[%emt 0:16:30]} 19. Qf5+ {[%emt 0:00:30]} 1-0

[Event "10th Cesme Open-A 2024"]
[Site "Cesme"]
[Date "2024.06.23"]
[Round "1"]
[White "Domalchuk-Jonasson, Aleksandr"]
[Black "Isgenderova, Hayale"]
[Result "1/2-1/2"]
[ECO "E16"]
[WhiteElo "2380"]
[BlackElo "2103"]
[Annotator "RC"]
[PlyCount "114"]
[EventDate "2024.06.23"]
[EventType "swiss"]
[EventCountry "TUR"]
[SourceTitle "playchess.com"]
[Source "ChessBase"]
[SourceQuality "1"]
[TimeControl "5400+30"]

1. d4 {[%emt 0:01:00]} Nf6 {[%emt 0:01:00]} 2. c4 {[%emt 0:00:30]} e6 {[%emt 0:00:00]} 3. g3 {[%emt 0:00:30]} Bb4+ {[%emt 0:06:00]} 4. Nd2 {[%emt 0:00:30]} d5 {[%emt 0:02:30]} 5. Bg2 {[%emt 0:00:00]} O-O {[%emt 0:00:30]} 6. Ngf3 {[%emt 0:00:00]} b6 {[%emt 0:06:30]} 7. O-O {[%emt 0:00:30]} Bb7 {[%emt 0:00:30]} 8. a3 {[%emt 0:00:30]} Bd6 {[%emt 0:00:00]} 9. b4 {[%emt 0:00:00]} c5 {[%emt 0:03:00]} 10. bxc5 {[%emt 0:06:00]} bxc5 {[%emt 0:00:30]} 11. Rb1 {[%emt 0:00:00]} Ba6 {[%emt 0:07:30]} 12. Bb2 {[%emt 0:18:00]} Nbd7 {[%emt 0:02:30]} 13. Qa4 {[%emt 0:09:30]} Qc8 {[%emt 0:03:30]} 14. cxd5 {[%emt 0:13:30]} Nxd5 {[%emt 0:07:30]} 15. Ne4 {[%emt 0:06:30]} N7b6 {[%emt 0:09:30]} 16. Qc2 {[%emt 0:09:30]} cxd4 {[%emt 0:02:30]} 17. Qxc8 {[%emt 0:00:30]} Nxc8 {[%emt 0:00:00]} 18. Nxd4 {[%emt 0:00:30]} Be7 {[%emt 0:10:00]} 19. Rfc1 {[%emt 0:01:30]} Ncb6 {[%emt 0:01:30]} 20. Nc5 {[%emt 0:03:30]} Bc4 {[%emt 0:04:30]} 21. Nd7 {[%emt 0:05:30]} Rfc8 {[%emt 0:05:30]} 22. Nxb6 {[%emt 0:00:30]} axb6 {[%emt 0:00:30]} 23. e4 {[%emt 0:00:30]} Nf6 {[%emt 0:00:00]} 24. Rc3 {[%emt 0:00:00]} b5 {[%emt 0:14:37]} 25. Rbc1 {[%emt 0:04:07]} Rc5 {[%emt 0:01:38]} 26. Nb3 {[%emt 0:02:17]} Rc7 {[%emt 0:01:21]} 27. Nd2 {[%emt 0:00:54]} h6 {[%emt 0:02:24]} 28. Nxc4 {[%emt 0:17:14]} bxc4 {[%emt 0:00:07]} 29. Rxc4 {[%emt 0:00:41]} Rxc4 {[%emt 0:00:48]} 30. Rxc4 {[%emt 0:00:02]} Bxa3 {[%emt 0:00:00]} 31. Bd4 {[%emt 0:00:30]} Rb8 {[%emt 0:01:47]} 32. f3 {[%emt 0:00:43]} Bb2 {[%emt 0:00:48]} 33. Be3 {[%emt 0:00:38]} g5 {[%emt 0:00:56]} 34. h4 {[%emt 0:00:43]} gxh4 {[%emt 0:00:50]} 35. g4 {[%emt 0:00:30]} Kg7 {[%emt 0:02:10]} 36. Bf2 {[%emt 0:00:16]} Be5 {[%emt 0:00:46]} 37. Bxh4 {[%emt 0:00:30]} Rb1+ {[%emt 0:00:00]} 38. Bf1 {[%emt 0:00:20]} Bf4 {[%emt 0:00:00]} 39. Rc2 {[%emt 0:01:21]} Nd7 {[%emt 0:00:00]} 40. Kg2 {[%emt 0:00:25]} Ne5 {[%emt 0:00:16]} 41. Be2 {[%emt 0:00:15]} Ng6 {[%emt 0:00:51]} 42. Bg3 {[%emt 0:00:28]} e5 {[%emt 0:00:45]} 43. Bf2 {[%emt 0:00:21]} Bg5 {[%emt 0:00:10]} 44. Bc4 {[%emt 0:00:30]} Nf4+ {[%emt 0:00:04]} 45. Kh2 {[%emt 0:00:00]} h5 {[%emt 0:02:02]} 46. Ba2 {[%emt 0:00:02]} Rf1 {[%emt 0:00:28]} 47. gxh5 {[%emt 0:01:06]} Nxh5 {[%emt 0:01:02]} 48. Kg2 {[%emt 0:00:58]} Ra1 {[%emt 0:00:04]} 49. Bc5 {[%emt 0:00:11]} Nf4+ {[%emt 0:00:18]} 50. Kh2 {[%emt 0:00:50]} Rf1 {[%emt 0:00:50]} 51. Bd6 {[%emt 0:00:23]} Rxf3 {[%emt 0:03:40]} 52. Bxe5+ {[%emt 0:00:30]} f6 {[%emt 0:00:00]} 53. Bd6 {[%emt 0:00:45]} Rh3+ {[%emt 0:00:18]} 54. Kg1 {[%emt 0:00:00]} Rg3+ {[%emt 0:00:21]} 55. Kf1 {[%emt 0:00:10]} Rf3+ {[%emt 0:00:00]} 56. Rf2 {[%emt 0:00:36]} Rxf2+ {[%emt 0:00:00]} 57. Kxf2 {[%emt 0:00:31]} Nd3+ {[%emt 0:00:04]} 1/2-1/2

[Event "10th Cesme Open-A 2024"]
[Site "Cesme"]
[Date "2024.06.23"]
[Round "1"]
[White "Haznedaroglu, Kivanc"]
[Black "Topuz, Mirac Melih"]
[Result "1-0"]
[ECO "C63"]
[WhiteElo "2359"]
[BlackElo "2055"]
[Annotator "RC"]
[PlyCount "73"]
[EventDate "2024.06.23"]
[EventType "swiss"]
[EventCountry "TUR"]
[SourceTitle "playchess.com"]
[Source "ChessBase"]
[SourceQuality "1"]
[TimeControl "5400+30"]

1. e4 {[%emt 0:01:00]} e5 {[%emt 0:01:00]} 2. Nf3 {[%emt 0:00:30]} Nc6 {[%emt 0:00:30]} 3. Bb5 {[%emt 0:00:30]} f5 {[%emt 0:00:00]} 4. d3 {[%emt 0:07:30]} fxe4 {[%emt 0:00:00]} 5. dxe4 {[%emt 0:00:00]} Nf6 {[%emt 0:00:30]} 6. Qd3 {[%emt 0:00:00]} Bc5 {[%emt 0:01:30]} 7. O-O {[%emt 0:00:30]} d6 {[%emt 0:00:30]} 8. Qc4 {[%emt 0:01:30]} Bd7 {[%emt 0:01:30]} 9. Bxc6 {[%emt 0:13:30]} Bxc6 {[%emt 0:02:30]} 10. Nxe5 {[%emt 0:00:30]} Bxf2+ {[%emt 0:01:30]} 11. Rxf2 {[%emt 0:00:00]} dxe5 {[%emt 0:00:00]} 12. Nc3 {[%emt 0:00:00]} Qe7 {[%emt 0:11:00]} 13. Bg5 {[%emt 0:12:30]} O-O-O {[%emt 0:02:30]} 14. Raf1 {[%emt 0:03:30]} Rd4 {[%emt 0:04:30]} 15. Qe2 {[%emt 0:00:30]} Rf8 {[%emt 0:09:30]} 16. Qg4+ {[%emt 0:08:30]} Kb8 {[%emt 0:17:30]} 17. Qh4 {[%emt 0:00:00]} Qb4 {[%emt 0:00:30]} 18. Nd5 {[%emt 0:07:00]} Qc5 {[%emt 0:10:30]} 19. Nxf6 {[%emt 0:00:30]} Bb5 {[%emt 0:10:30]} 20. Be3 {[%emt 0:02:30]} gxf6 {[%emt 0:04:30]} 21. Bxd4 {[%emt 0:04:30]} Qxd4 {[%emt 0:00:30]} 22. c3 {[%emt 0:00:00]} Qe3 {[%emt 0:00:30]} 23. Rd1 {[%emt 0:00:00]} a6 {[%emt 0:02:37]} 24. h3 {[%emt 0:02:30]} Bd3 {[%emt 0:04:56]} 25. Kh2 {[%emt 0:02:30]} Bxe4 {[%emt 0:09:15]} 26. Rxf6 {[%emt 0:00:30]} Rg8 {[%emt 0:00:37]} 27. Rg1 {[%emt 0:00:30]} Qd3 {[%emt 0:02:53]} 28. Qf2 {[%emt 0:02:30]} Qd8 {[%emt 0:00:08]} 29. Rf1 {[%emt 0:02:30]} Rxg2+ {[%emt 0:03:02]} 30. Qxg2 {[%emt 0:00:30]} Bxg2 {[%emt 0:00:30]} 31. Rf8 {[%emt 0:00:30]} Bxf1 {[%emt 0:00:30]} 32. Rxd8+ {[%emt 0:00:30]} Ka7 {[%emt 0:00:00]} 33. Rd7 {[%emt 0:00:00]} h5 {[%emt 0:00:19]} 34. Rxc7 {[%emt 0:00:00]} e4 {[%emt 0:00:00]} 35. Re7 {[%emt 0:00:00]} Bc4 {[%emt 0:00:14]} 36. a4 {[%emt 0:00:00]} Bd5 {[%emt 0:00:40]} 37. a5 {[%emt 0:00:00]} 1-0

[Event "10th Cesme Open-A 2024"]
[Site "Cesme"]
[Date "2024.06.23"]
[Round "1"]
[White "Kamer, Kayra"]
[Black "Demirbag, Alihan"]
[Result "1-0"]
[ECO "B43"]
[WhiteElo "2316"]
[BlackElo "2055"]
[Annotator "RC"]
[PlyCount "133"]
[EventDate "2024.06.23"]
[EventType "swiss"]
[EventCountry "TUR"]
[SourceTitle "playchess.com"]
[Source "ChessBase"]
[SourceQuality "1"]
[TimeControl "5400+30"]

1. e4 {[%emt 0:01:00]} c5 {[%emt 0:01:00]} 2. Nf3 {[%emt 0:00:30]} e6 {[%emt 0:00:30]} 3. d4 {[%emt 0:00:30]} cxd4 {[%emt 0:00:30]} 4. Nxd4 {[%emt 0:00:30]} a6 {[%emt 0:00:30]} 5. Nc3 {[%emt 0:00:00]} b5 {[%emt 0:00:00]} 6. Bd3 {[%emt 0:00:00]} Qb6 {[%emt 0:00:00]} 7. Nf3 {[%emt 0:00:30]} Qc7 {[%emt 0:00:00]} 8. O-O {[%emt 0:00:30]} Be7 {[%emt 0:06:00]} 9. Re1 {[%emt 0:01:30]} d6 {[%emt 0:03:30]} 10. Bf4 {[%emt 0:00:30]} b4 {[%emt 0:08:30]} 11. Na4 {[%emt 0:00:30]} Nf6 {[%emt 0:02:30]} 12. c4 {[%emt 0:04:30]} e5 {[%emt 0:05:30]} 13. Bd2 {[%emt 0:03:30]} Nc6 {[%emt 0:03:30]} 14. a3 {[%emt 0:00:30]} a5 {[%emt 0:01:30]} 15. axb4 {[%emt 0:00:30]} axb4 {[%emt 0:00:30]} 16. Be3 {[%emt 0:00:30]} Nd7 {[%emt 0:04:30]} 17. Bc2 {[%emt 0:04:30]} O-O {[%emt 0:07:30]} 18. b3 {[%emt 0:03:30]} Nc5 {[%emt 0:02:30]} 19. Nb2 {[%emt 0:00:30]} Bg4 {[%emt 0:01:30]} 20. Rb1 {[%emt 0:04:30]} Ne6 {[%emt 0:03:30]} 21. h3 {[%emt 0:00:30]} Bxf3 {[%emt 0:00:30]} 22. Qxf3 {[%emt 0:00:00]} Ncd4 {[%emt 0:02:30]} 23. Qd1 {[%emt 0:00:00]} Ra2 {[%emt 0:00:30]} 24. Bd3 {[%emt 0:06:30]} Bf6 {[%emt 0:08:30]} 25. Bf1 {[%emt 0:01:30]} Rb8 {[%emt 0:05:30]} 26. g3 {[%emt 0:02:30]} Ra3 {[%emt 0:03:30]} 27. Nd3 {[%emt 0:00:30]} Ra2 {[%emt 0:03:30]} 28. Nc1 {[%emt 0:02:30]} Ra3 {[%emt 0:00:30]} 29. Bg2 {[%emt 0:00:30]} Qa5 {[%emt 0:00:30]} 30. h4 {[%emt 0:06:30]} Ra1 {[%emt 0:02:30]} 31. Ne2 {[%emt 0:00:30]} Rxb1 {[%emt 0:00:30]} 32. Qxb1 {[%emt 0:01:30]} Nxe2+ {[%emt 0:05:37]} 33. Rxe2 {[%emt 0:00:00]} Ra8 {[%emt 0:00:05]} 34. Qd3 {[%emt 0:01:00]} Qa1+ {[%emt 0:01:19]} 35. Kh2 {[%emt 0:00:30]} Rd8 {[%emt 0:00:22]} 36. Bb6 {[%emt 0:00:30]} Rd7 {[%emt 0:01:46]} 37. Bh3 {[%emt 0:00:30]} Qa6 {[%emt 0:01:11]} 38. Be3 {[%emt 0:02:30]} Re7 {[%emt 0:00:51]} 39. Bxe6 {[%emt 0:01:30]} Rxe6 {[%emt 0:00:21]} 40. Qb1 {[%emt 0:00:30]} Re8 {[%emt 0:01:20]} 41. Ra2 {[%emt 0:00:30]} Qc6 {[%emt 0:00:41]} 42. Ra4 {[%emt 0:00:30]} Rb8 {[%emt 0:00:30]} 43. Qd3 {[%emt 0:00:00]} Be7 {[%emt 0:09:57]} 44. Qd5 {[%emt 0:00:00]} Qxd5 {[%emt 0:00:14]} 45. exd5 {[%emt 0:00:30]} f5 {[%emt 0:01:32]} 46. Bd2 {[%emt 0:00:30]} Rb7 {[%emt 0:01:29]} 47. Rxb4 {[%emt 0:00:30]} Rc7 {[%emt 0:00:00]} 48. Rb6 {[%emt 0:01:30]} Kf7 {[%emt 0:01:40]} 49. Bb4 {[%emt 0:00:30]} Rd7 {[%emt 0:00:11]} 50. Kg2 {[%emt 0:00:00]} g6 {[%emt 0:01:06]} 51. Kf3 {[%emt 0:03:00]} h6 {[%emt 0:02:19]} 52. Ke3 {[%emt 0:00:30]} g5 {[%emt 0:01:27]} 53. h5 {[%emt 0:00:30]} Bd8 {[%emt 0:00:28]} 54. Rxd6 {[%emt 0:03:30]} Rb7 {[%emt 0:00:01]} 55. Rxd8 {[%emt 0:00:30]} Rxb4 {[%emt 0:00:30]} 56. Rd7+ {[%emt 0:00:30]} Ke8 {[%emt 0:00:14]} 57. Rd6 {[%emt 0:00:30]} Rxb3+ {[%emt 0:00:02]} 58. Ke2 {[%emt 0:00:00]} Rb2+ {[%emt 0:01:21]} 59. Kf1 {[%emt 0:00:00]} Rc2 {[%emt 0:00:13]} 60. Rxh6 {[%emt 0:00:30]} Rxc4 {[%emt 0:00:50]} 61. Re6+ {[%emt 0:00:00]} Kf7 {[%emt 0:00:21]} 62. Rxe5 {[%emt 0:00:00]} Kf6 {[%emt 0:00:22]} 63. Re6+ {[%emt 0:00:30]} Kf7 {[%emt 0:00:00]} 64. h6 {[%emt 0:01:30]} Rc5 {[%emt 0:01:02]} 65. h7 {[%emt 0:01:30]} Kg7 {[%emt 0:00:58]} 66. Re7+ {[%emt 0:01:30]} Kh8 {[%emt 0:00:30]} 67. d6 {[%emt 0:00:00]} 1-0

[Event "10th Cesme Open-A 2024"]
[Site "Cesme"]
[Date "2024.06.23"]
[Round "1"]
[White "Gunduz, Umut Erdem"]
[Black "Uysal, Ugur"]
[Result "1-0"]
[ECO "E60"]
[WhiteElo "2312"]
[BlackElo "2058"]
[Annotator "RC"]
[PlyCount "219"]
[EventDate "2024.06.23"]
[EventType "swiss"]
[EventCountry "TUR"]
[SourceTitle "playchess.com"]
[Source "ChessBase"]
[SourceQuality "1"]
[TimeControl "5400+30"]

1. d4 {[%emt 0:01:00]} Nf6 {[%emt 0:01:00]} 2. c4 {[%emt 0:00:00]} g6 {[%emt 0:00:30]} 3. g3 {[%emt 0:00:00]} Bg7 {[%emt 0:00:30]} 4. Bg2 {[%emt 0:00:30]} O-O {[%emt 0:00:30]} 5. Nf3 {[%emt 0:00:30]} d6 {[%emt 0:00:30]} 6. O-O {[%emt 0:00:30]} c6 {[%emt 0:00:00]} 7. Nbd2 {[%emt 0:04:30]} Re8 {[%emt 0:07:00]} 8. e4 {[%emt 0:07:30]} e5 {[%emt 0:00:30]} 9. Re1 {[%emt 0:02:30]} Bg4 {[%emt 0:02:30]} 10. h3 {[%emt 0:00:30]} Bxf3 {[%emt 0:00:30]} 11. Nxf3 {[%emt 0:00:30]} Nbd7 {[%emt 0:00:00]} 12. Qc2 {[%emt 0:02:30]} Qc7 {[%emt 0:05:00]} 13. c5 {[%emt 0:04:30]} dxc5 {[%emt 0:02:30]} 14. dxc5 {[%emt 0:05:30]} Bf8 {[%emt 0:02:30]} 15. Be3 {[%emt 0:00:30]} b6 {[%emt 0:01:30]} 16. cxb6 {[%emt 0:04:30]} axb6 {[%emt 0:00:30]} 17. Bf1 {[%emt 0:01:30]} Nc5 {[%emt 0:09:30]} 18. b4 {[%emt 0:13:30]} Ncxe4 {[%emt 0:08:30]} 19. Bc1 {[%emt 0:01:30]} Bxb4 {[%emt 0:19:30]} 20. Rxe4 {[%emt 0:01:30]} Nxe4 {[%emt 0:00:30]} 21. Qxe4 {[%emt 0:00:30]} Bc3 {[%emt 0:00:30]} 22. Rb1 {[%emt 0:00:00]} Rxa2 {[%emt 0:01:30]} 23. Bc4 {[%emt 0:01:00]} Ra4 {[%emt 0:13:30]} 24. Bxf7+ {[%emt 0:02:30]} Qxf7 {[%emt 0:00:30]} 25. Qxa4 {[%emt 0:00:30]} Qxf3 {[%emt 0:01:30]} 26. Qb3+ {[%emt 0:00:00]} Kg7 {[%emt 0:03:12]} 27. Bb2 {[%emt 0:01:00]} Rf8 {[%emt 0:01:54]} 28. Qxc3 {[%emt 0:00:30]} Qxf2+ {[%emt 0:00:30]} 29. Kh1 {[%emt 0:00:00]} Kh6 {[%emt 0:05:21]} 30. Qc1+ {[%emt 0:03:00]} g5 {[%emt 0:04:45]} 31. Qxc6+ {[%emt 0:00:30]} Rf6 {[%emt 0:00:10]} 32. Qg2 {[%emt 0:00:30]} Qe3 {[%emt 0:00:16]} 33. Rd1 {[%emt 0:04:30]} b5 {[%emt 0:04:49]} 34. h4 {[%emt 0:00:30]} Kh5 {[%emt 0:01:54]} 35. Bc1 {[%emt 0:01:30]} Qf3 {[%emt 0:00:28]} 36. Qxf3+ {[%emt 0:02:30]} Rxf3 {[%emt 0:00:02]} 37. Kg2 {[%emt 0:00:30]} Kg4 {[%emt 0:00:17]} 38. hxg5 {[%emt 0:00:00]} Rxg3+ {[%emt 0:00:30]} 39. Kf2 {[%emt 0:00:00]} Rc3 {[%emt 0:00:19]} 40. Bd2 {[%emt 0:00:00]} Rb3 {[%emt 0:02:10]} 41. Rh1 {[%emt 0:00:00]} Rb2 {[%emt 0:00:15]} 42. Ke2 {[%emt 0:02:30]} e4 {[%emt 0:00:07]} 43. Rg1+ {[%emt 0:00:30]} Kf5 {[%emt 0:00:07]} 44. Rf1+ {[%emt 0:00:30]} Kg4 {[%emt 0:00:30]} 45. Rg1+ {[%emt 0:00:30]} Kf5 {[%emt 0:00:30]} 46. Rg3 {[%emt 0:00:00]} b4 {[%emt 0:00:47]} 47. Kd1 {[%emt 0:04:00]} b3 {[%emt 0:00:46]} 48. Rc3 {[%emt 0:00:30]} Rb1+ {[%emt 0:00:34]} 49. Ke2 {[%emt 0:00:30]} Rb2 {[%emt 0:00:54]} 50. Rc5+ {[%emt 0:00:30]} Ke6 {[%emt 0:00:40]} 51. Rb5 {[%emt 0:01:30]} Kf7 {[%emt 0:02:34]} 52. Rb6 {[%emt 0:00:30]} Rb1 {[%emt 0:00:16]} 53. Ke3 {[%emt 0:00:00]} Rb2 {[%emt 0:00:43]} 54. Rf6+ {[%emt 0:02:00]} Kg8 {[%emt 0:00:14]} 55. Rf4 {[%emt 0:01:30]} Rb1 {[%emt 0:00:03]} 56. Rxe4 {[%emt 0:03:30]} b2 {[%emt 0:00:30]} 57. Rb4 {[%emt 0:00:30]} Rg1 {[%emt 0:00:30]} 58. Rxb2 {[%emt 0:00:30]} Rxg5 {[%emt 0:00:30]} 59. Rb7 {[%emt 0:00:00]} Rg7 {[%emt 0:00:16]} 60. Rb8+ {[%emt 0:00:00]} Kf7 {[%emt 0:00:30]} 61. Kf4 {[%emt 0:00:00]} Ke6 {[%emt 0:00:21]} 62. Ke4 {[%emt 0:00:00]} Rc7 {[%emt 0:01:05]} 63. Rb6+ {[%emt 0:00:30]} Kf7 {[%emt 0:00:19]} 64. Bf4 {[%emt 0:00:00]} Rc5 {[%emt 0:00:36]} 65. Be5 {[%emt 0:01:00]} Rc1 {[%emt 0:00:19]} 66. Kf5 {[%emt 0:00:00]} Rf1+ {[%emt 0:00:41]} 67. Bf4 {[%emt 0:00:00]} Kg8 {[%emt 0:00:30]} 68. Rb8+ {[%emt 0:00:00]} Kf7 {[%emt 0:00:14]} 69. Rb7+ {[%emt 0:00:00]} Kg8 {[%emt 0:00:00]} 70. Ra7 {[%emt 0:00:30]} Rf2 {[%emt 0:00:35]} 71. Kg5 {[%emt 0:00:30]} Rf1 {[%emt 0:01:27]} 72. Be5 {[%emt 0:00:30]} Rf7 {[%emt 0:00:00]} 73. Ra1 {[%emt 0:01:30]} Rf2 {[%emt 0:00:53]} 74. Bg3 {[%emt 0:00:00]} Rf3 {[%emt 0:00:30]} 75. Bf4 {[%emt 0:01:00]} Rf2 {[%emt 0:00:16]} 76. Ra8+ {[%emt 0:00:00]} Kf7 {[%emt 0:00:21]} 77. Rh8 {[%emt 0:01:00]} Rg2+ {[%emt 0:01:00]} 78. Kf5 {[%emt 0:00:30]} Kg7 {[%emt 0:00:12]} 79. Be5+ {[%emt 0:00:30]} Kh6 {[%emt 0:00:06]} 80. Bd4 {[%emt 0:00:30]} Rg5+ {[%emt 0:00:50]} 81. Kf6 {[%emt 0:00:30]} Rg3 {[%emt 0:00:49]} 82. Kf7 {[%emt 0:00:30]} Rf3+ {[%emt 0:00:54]} 83. Bf6 {[%emt 0:00:00]} Rf4 {[%emt 0:00:25]} 84. Rg8 {[%emt 0:00:00]} Rb4 {[%emt 0:01:03]} 85. Rg3 {[%emt 0:00:30]} Rb7+ {[%emt 0:00:07]} 86. Be7 {[%emt 0:00:00]} Rb5 {[%emt 0:00:05]} 87. Rg4 {[%emt 0:00:00]} Ra5 {[%emt 0:00:44]} 88. Rh4+ {[%emt 0:00:30]} Rh5 {[%emt 0:00:30]} 89. Rd4 {[%emt 0:01:30]} Rh1 {[%emt 0:00:21]} 90. Rg4 {[%emt 0:01:30]} Rh3 {[%emt 0:00:43]} 91. Bf6 {[%emt 0:01:30]} Rh1 {[%emt 0:00:18]} 92. Rf4 {[%emt 0:00:30]} Kh5 {[%emt 0:00:23]} 93. Kg7 {[%emt 0:00:30]} h6 {[%emt 0:00:06]} 94. Kf7 {[%emt 0:00:30]} Rh3 {[%emt 0:00:17]} 95. Ke6 {[%emt 0:00:30]} Kg6 {[%emt 0:00:42]} 96. Rg4+ {[%emt 0:00:30]} Kh5 {[%emt 0:00:00]} 97. Rg2 {[%emt 0:00:30]} Rh1 {[%emt 0:00:02]} 98. Be5 {[%emt 0:00:30]} Rh4 {[%emt 0:01:12]} 99. Kf5 {[%emt 0:00:30]} Rg4 {[%emt 0:00:30]} 100. Rh2+ {[%emt 0:00:30]} Rh4 {[%emt 0:00:00]} 101. Ra2 {[%emt 0:00:00]} Rb4 {[%emt 0:00:09]} 102. Ra6 {[%emt 0:00:00]} Rb5 {[%emt 0:00:30]} 103. Rc6 {[%emt 0:00:30]} Ra5 {[%emt 0:00:30]} 104. Rb6 {[%emt 0:02:30]} Rc5 {[%emt 0:01:44]} 105. Rb2 {[%emt 0:01:30]} Rc4 {[%emt 0:00:30]} 106. Bd6 {[%emt 0:00:30]} Rd4 {[%emt 0:00:30]} 107. Bg3 {[%emt 0:00:30]} Rd5+ {[%emt 0:00:30]} 108. Be5 {[%emt 0:00:30]} Rd3 {[%emt 0:00:30]} 109. Rh2+ {[%emt 0:00:30]} Rh3 {[%emt 0:01:17]} 110. Rxh3# {[%emt 0:00:00]} 1-0